Cogmind - Beta 10.1 @@@ ROGUE MODE // 2020.10.28 @ 10:49:17 Player: Zyalin Result: Destroyed by as-12993 with Assembled Rifle Performance ------------- Evolutions (0) 0 Regions Visited (0) 0 Robots Destroyed (8) 40 Value Destroyed (77) 77 Prototype IDs (0) 0 Alien Tech Used (0) 0 Bonus (0) 0 TOTAL SCORE: 117 Bonus ------- None Cogmind --------- Core Integrity 0/250 Matter 300/300 Energy 100/100 System Corruption 9% Temperature Cool (0) Movement Core (100) Ox1 Location -11/Scrapyard Parts ------- > --- POWER (1) -------- (None) > --- PROPULSION (2) --- (None) > --- UTILITY (2) ------ Small Storage Unit > --- WEAPON (2) ------- (None) > --- INVENTORY (6) ---- Ion Engine Aluminum Leg Wheel Seismic Analyzer Peak State ------------ > --- POWER ------------ Ion Engine > --- PROPULSION ------- Light Treads Light Treads > --- UTILITY ---------- Small Storage Unit Small Matter Pod > --- WEAPON ----------- EM Pulse Gun Small Laser > --- INVENTORY -------- Ion Engine Aluminum Leg Aluminum Leg Wheel Wheel Assault Rifle [Rating: 7] Favorites ----------- Power Ion Engine Engine Ion Engine Propulsion Light Treads Treads Light Treads Leg Aluminum Leg Wheel Wheel Utility Small Storage Unit Storage Small Storage Unit Weapon Small Laser Energy Gun Small Laser Ballistic Gun Assault Rifle Special Weapon Mining Laser Build | -11 ------- Run | Scr Slots Evolved . | . Power . | . Propulsion . | . Utility . | . Weapon . | . Parts Attached 15 | 15 Power 3 | 3 Engine 3 | 3 Core . | . Reactor . | . Propulsion 6 | 6 Treads 2 | 2 Leg 2 | 2 Wheel 2 | 2 Hover . | . Flight . | . Utility 2 | 2 Device . | . Storage 2 | 2 Processor . | . Hackware . | . Protection . | . Artifact . | . Weapon 4 | 4 Energy Gun 2 | 2 Energy Cannon . | . Ballistic Gun 1 | 1 Ballistic Cannon . | . Launcher . | . Special Weapon 1 | 1 Impact Weapon . | . Slashing Weapon . | . Piercing Weapon . | . Special Melee Weapon . | . Unidentified Prototypes . | . Parts Lost 12 | 12 Power 2 | 2 Propulsion 5 | 5 Utility 1 | 1 Weapon 4 | 4 Highest Loss Streak 7 | 7 Average Slot Usage (%) . | . Naked Turns . | . Heaviest Build 13 | 13 Greatest Support 40 | 40 Greatest Overweight (x) 3 | 3 Average Overweight (x) . | . Largest Inventory Capacity 6 | 6 Average Capacity 5 | 5 Most Carried 6 | 6 Average Carried 5 | 5 Final Capacity 6 | 6 Final Carried 4 | 4 Class Distribution -------------------- None Dominant Class ---------------- None Resources | -11 ----------- Run | Scr Matter Collected 402 | 402 Remotely . | . Salvage Created 249 | 249 Parts 13 | 13 Haulers Intercepted . | . Recyclers Shooed . | . Parts Field Recycled . | . Retrieved Matter . | . Parts Self-Destructed . | . Prevented . | . Kills | -11 ------- Run | Scr Combat Hostiles Destroyed 1 | 1 Guns 1 | 1 Classes Destroyed 4 | 4 Worker 4 | 4 Tunneler 2 | 2 Recycler 1 | 1 Demolisher 1 | 1 Best Kill Streak 2 | 2 Combat Bots Only 1 | 1 Max Kills in Single Turn 1 | 1 Gunslinging . | . Exploded . | . Melee . | . Uniques/NPCs Destroyed . | . Combat | -11 -------- Run | Scr Damage Taken 1214 | 1214 Core 264 | 264 Absorbed by Shields . | . Core Remaining (%) . | . Volleys Fired 31 | 31 Largest 2 | 2 Hottest 100 | 100 Shots Fired 45 | 45 Gun 44 | 44 Cannon . | . Launcher . | . Special 1 | 1 Kinetic 17 | 17 Thermal 15 | 15 Explosive . | . Electromagnetic 13 | 13 Robot Hit Streak 9 | 9 Robot Miss Streak 3 | 3 Penetration Max . | . Secondary Targets . | . Shots Hit Robots 33 | 33 Core Hits 17 | 17 Critical Hits . | . Critical Kills . | . Critical Parts Destroyed . | . Melee Attacks . | . Impact . | . Slashing . | . Piercing . | . Sneak Attacks . | . Combat Hostiles . | . Follow-up Attacks . | . Damage Inflicted 461 | 461 Guns 436 | 436 Cannons . | . Explosions . | . Melee . | . Ramming 25 | 25 Kinetic 175 | 175 Thermal 128 | 128 Explosive . | . Electromagnetic 133 | 133 Impact . | . Slashing . | . Piercing . | . Highest Corruption 9 | 9 Average Corruption 7 | 7 Corruption Purged . | . Overload Shots . | . Overflow Damage . | . Projectiles . | . Explosions . | . Melee . | . Knockbacks . | . Impact . | . Kinetic . | . Secondary . | . Self-Inflicted Damage 10 | 10 Shots . | . Rammed 11 | 11 Targets Rammed 11 | 11 Kicked . | . Crushed . | . Highest Temperature 54 | 54 Average Temperature 19 | 19 Received Heat Transfer 60 | 60 Siege Activations . | . Robots Corrupted . | . Combat Hostiles . | . Parts Fried . | . Impact Corruptions . | . Robots Melted . | . Combat Hostiles . | . Parts Melted . | . Heat Transferred 300 | 300 Parts Sabotaged . | . Parts Stolen . | . Parts Stripped . | . Power Chain Reactions . | . Missiles Intercepted . | . Alert | -11 ------- Run | Scr Peak Influence 30 | 30 Initial . | . Average 1 | 1 Maximum Alert Level . | . Low Security (%) 100 | 100 Level 1 . | . Level 2 . | . Level 3 . | . Level 4 . | . Level 5 . | . High Security . | . Max Security . | . Squads Dispatched . | . Investigation . | . Extermination . | . Reinforcement . | . Assault . | . Garrison . | . Intercept . | . Construction Impeded . | . Haulers Reinforced . | . Stealth | -11 --------- Run | Scr Distress Signals . | . Communications Jammed . | . Distress Signals . | . Times Spotted 11 | 11 Peak Tracking Total 9 | 9 Tactical Retreats . | . Traps | -11 ------- Run | Scr Traps Triggered . | . Indirectly . | . Trap Hack Attempts . | . Triggered . | . Disarmed . | . Reprogrammed . | . Reused . | . Traps Extracted . | . Installed . | . Triggered . | . Machines | -11 ---------- Run | Scr Machines Disabled . | . Max in Single Turn . | . Machines Sabotaged . | . Garrisons Compromised . | . Overloaded Fab Kills . | . Fab Network Shutdowns . | . Hacking | -11 --------- Run | Scr Machines Accessed . | . Terminals . | . Fabricators . | . Repair Stations . | . Recycling Units . | . Scanalyzers . | . Garrison Access . | . Total Hacks . | . Successful . | . Failed . | . Catastrophic . | . Database Lockouts . | . Manual . | . Terminals . | . Fabricators . | . Repair Stations . | . Recycling Units . | . Scanalyzers . | . Garrison Access . | . Terminal Hacks . | . Fabricator Hacks . | . Repair Station Hacks . | . Recycling Unit Hacks . | . Scanalyzer . | . Garrison Access Hacks . | . Unauthorized Hacks . | . Terminals . | . Fabricators . | . Repair Stations . | . Recycling Units . | . Scanalyzers . | . Garrison Access . | . Data Cores Recovered . | . Used . | . Hacking Detections . | . Full Trace Events . | . Feedback Events . | . Feedback Blocked . | . Robot Schematics Acquired . | . Robots Built . | . Matter . | . Time . | . Total Robot Build Rating . | . Part Schematics Acquired . | . Parts Built . | . Matter . | . Time . | . Total Part Build Rating . | . Parts Repaired . | . Time . | . Parts Recycled . | . Recycled Matter . | . Retrieved Matter . | . Retrieved Components . | . Parts Scanalyzed . | . Part Schematics Acquired . | . Parts Damaged . | . Bothacking | -11 ------------ Run | Scr Used RIF Installer . | . Robots Hacked . | . Non-combat . | . Combat . | . Robot Hacks Applied . | . Relay Couplers Released . | . Robots Rewired . | . Allies Hacked . | . Hacks Repelled . | . Allies | -11 -------- Run | Scr Total Allies . | . Largest Group . | . Highest-Rated Group . | . Highest-Rated Ally . | . Total Orders . | . Ally Attacks . | . Total Damage . | . Kills . | . Allies Corrupted . | . Allies Melted . | . Intel | -11 ------- Run | Scr Robot Analysis Total . | . Derelict Logs Recovered . | . Drone Launches . | . Drone Recoveries . | . Exploration | -11 ------------- Run | Scr Turns Passed 4361 | 4361 Spaces Moved 877 | 877 Core 23 | 23 Treads 723 | 723 Legs 22 | 22 Wheels 109 | 109 Hover . | . Flight . | . Fastest Speed 50 | 50 Average Speed 147 | 147 Slowest Speed 200 | 200 Overloaded Moves . | . Propulsion Burnouts . | . Robots Hopped . | . Cave-ins Triggered . | . Exploration Rate (%) 73 | 73 Regions Visited . Branch Regions . Pre-discovered Areas . | . Known Exits Taken . | . Unknown Exits Taken . | . Scrap Searched . | . Spaces Dug . | . Terrain Destroyed 1 | 1 Melee . | . Projectile 1 | 1 AOE . | . Terrain Rammed . | . Walls Destroyed . | . Machines Disabled . | . Actions | -11 --------- Run | Scr Total 3889 | 3889 Wait 2947 | 2947 Move 877 | 877 Hop . | . Pick Up 7 | 7 Fast Attach 9 | 9 Attach 5 | 5 Detach 1 | 1 Swap 1 | 1 Drop . | . Fire 31 | 31 Melee . | . Ram 8 | 8 Kick 3 | 3 Crush . | . Escape Stasis . | . Rewire . | . Trap . | . Miscellaneous . | . Route ------- -11/Scrapyard (discovered 1 exit: [*Mat]) History --------- Turn | Location | Event 34 | -11/Scrapyard | Discovered new exit (range 16) 4144 | -11/Scrapyard | Assembled infested the area 4229 | -11/Scrapyard | Lost 7 parts (1p3n3w) 4349 | -11/Scrapyard | Core integrity fell below 50% 4357 | -11/Scrapyard | Core integrity fell below 20% 4362 | -11/Scrapyard | Destroyed by as-12993 with Assembled Rifle Last Messages --------------- 04268_ T-07 Excavator destroyed. 04269_ Acquired 2 matter. 04275_ Acquired Wheel. 04276_ Acquired 10 matter. 04278_ Acquired Mining Laser. 04280_ Acquired 10 matter. 04282_ Acquired Seismic Analyzer. 04337_ Mining Laser destroyed. 04340_ Slammed into as-86701. 04341_ Sml. Matter Pod destroyed. 04341_ System corrupted by crushing effect (+3). 04342_ Slammed into as-86701. 04343_ Wheel destroyed. 04343_ Slammed into as-86701. 04343_ Destabilizing: System corrupted (+2). 04344_ Broken Lgt. Ion Engine destroyed. 04345_ Slammed into as-86701. 04347_ Wheel destroyed. 04347_ System corrupted by crushing effect (+4). 04347_ Knocked back. Map ----- +----------------------------------------------------+ | ?????????????????????????????????## ##????????### | | ??????????????????????????????????# #?????????# | | ??????????????????????????????????# #?????????# | | ?????????????????????????######???# #?????????# | | ?????????????????????????# ???# #???####### | | ??????????????########???# ??# #??? # | | ??????????????# #???# ?# #?? # | | ??????????????# #???# ?# #? # | | ??????????????# #???# # # # | | ??????????????# #???# # # # | | ??????????????# #???# # | | ??????????????# ###?# # # # | | ??????????????## ##### #?# # # # | | ???????????????# #?########?# ############# | | ???????????????# ##### #???# ?# # #????? | | ???????????????# ########### # # #????? | | ######?###?###?# # # # #?#### | | # ### ### ### # # #?# | | # # # # # #?# | | # # # # #?# | | # ####### ##################### # ##??# | | ## ## #???##########???# # #??# | | # ## # #???# #???# # #???? | | # ## # #???# #???#* ## ####### | | ## # ##### #####%= | | # #### # = a @ aa% a = | | #??##### *%= a aa a # ###### | | # #????######!### ##### < # | | # #????# # #???# # | | # #????# # #???## # ## # | | # #????# #### ########### ## # | | # #????# #??# ## ! ## | | # #????# #??# ## =%* ## | | ## #????# #??# ## = ## | | ## #????# #??# ## % ## | | #????# #??# ## % ########### | | #????# ####?## ## % #?????????? | | #####???############# ###% ##########?????????? | | ????????# % ##########? | | ????????# ### # #? | | ????????# #?# ### ######## # #? | | ????????# #### ### ## # #? | | ????????# ## # ## # #? | | ????????# ## # ## #? | | ????????# ## # ## # #? | | ????????# ## # ## # #? | | ############# ###### # ## # #? | | # # #????# # ## # #? | | # #????# # ## ##########? | | # # #????# ############ # #??? | +----------------------------------------------------+ Best States ------------- Heat Dissipation 25 Energy Generation 10 Energy Capacity 250 Matter Stores 350 Matter Capacity 350 Sight Range 16 Terrain Scan Density 10 Evasion (%) 44 Recoil Reduction 2 Item Schematics ----------------- None Robot Schematics ------------------ None Fabricated ------------ Nothing Alien Tech Used ----------------- None Achievements -------------- None Challenges ------------ None Game ------ Seed FluxLinkedBeam Manual? 0 Play Time 00:13:14 Cumulative 381.1 hours Start 2020.10.28 @ 10:42:29 End 2020.10.28 @ 10:49:17 Sessions 0 Manual Loads 0 Difficulty Rogue Special Mode None Game No. 245 Rogue 244 Adventurer 0 Explorer 1 Win Type - Total 38 Types 29/2/4/2/1/0/0/0/0 Lore% 88 Gallery% 91 Achievement% 86 Wizard Run 0 Options --------- ASCII 0 Keyboard 0 Movement Numpad Keybinds 0 Fullscreen 1 Font 18/X11Bold Map View 76x50 Tactical HUD 1 Map Filters NONE Filters NONE Steam 1 RUN: f45e18af-d069-402d-a871-fd91b3f8a6e6